bitfinex-derivatives/quotes_BTCF0:USTF0_20260111
["timestamp","ask_amount","ask_price","bid_price","bid_amount"]
[1768092308902,0.01436,90610.0,90603.0,0.011051]
[1768092313798,0.01436,90610.0,90601.0,0.02048441]
[1768092316196,0.01436,90610.0,90601.0,0.00943341]
[1768092316598,0.01436,90610.0,90601.0,0.02048441]
[1768092317397,0.00436,90610.0,90605.0,0.00943341]
[1768092317599,0.011049,90617.0,90605.0,0.00943341]
[1768092317791,0.011049,90617.0,90606.0,0.00943341]
[1768092320305,0.104969,90619.0,90606.0,0.00943341]
[1768092323904,0.00983759,90618.0,90600.0,0.011051]
[1768092324198,0.00983759,90618.0,90600.0,0.02048441]
[1768092324407,0.011049,90617.0,90601.0,0.00943341]
[1768092326201,0.01105,90616.0,90601.0,0.00943341]
[1768092330209,0.01105,90616.0,90602.0,0.011051]
[1768092330411,0.01105,90616.0,90602.0,0.02048441]
[1768092331414,0.02088659,90618.0,90602.0,0.02048441]
[1768092331810,0.011049,90616.0,90602.0,0.02048441]
[1768092332908,0.02088659,90618.0,90603.0,0.011051]
[1768092333115,0.00983759,90618.0,90602.0,0.00943341]
[1768092334218,0.011049,90616.0,90602.0,0.02048441]
[1768092335019,0.02088659,90618.0,90602.0,0.02048441]
[1768092339021,0.011049,90616.0,90602.0,0.02048441]
[1768092339719,0.02088659,90618.0,90602.0,0.02048441]
[1768092340723,0.02088659,90618.0,90603.0,0.011051]
[1768092340918,0.09392,90619.0,90603.0,0.02023868]
[1768092341347,0.011049,90618.0,90603.0,0.02023868]
[1768092345644,0.01605,90617.0,90603.0,0.02023868]
[1768092349145,0.09392,90616.0,90603.0,0.02023868]
[1768092352042,0.09392,90616.0,90604.0,0.00918768]
[1768092360157,0.09392,90616.0,90605.0,0.00951536]
[1768092361159,0.09392,90616.0,90605.0,0.02056636]
[1768092361860,0.09392,90616.0,90605.0,0.00951536]
[1768092362062,0.09392,90616.0,90606.0,0.011051]
[1768092363761,0.09392,90616.0,90605.0,0.00951536]
[1768092364363,0.09392,90616.0,90606.0,0.011051]
[1768092366062,0.09392,90616.0,90605.0,0.00951536]
[1768092366364,0.09392,90616.0,90605.0,0.02056636]
[1768092368159,0.09392,90616.0,90607.0,0.011051]
[1768092370260,0.09392,90616.0,90605.0,0.00951536]
[1768092370463,0.09392,90626.0,90612.0,0.00958586]
[1768092370655,0.0257091,90624.0,90620.0,0.011049]
[1768092370860,0.0257091,90624.0,90605.0,0.09392]
[1768092370861,0.09392,90635.0,90618.0,0.00958586]
[1768092371060,0.386764,90658.0,90618.0,0.00958586]
[1768092371061,0.09392,90643.0,90628.0,0.00958586]
[1768092371461,0.09392,90649.0,90631.0,0.00958586]
[1768092371666,0.09392,90649.0,90632.0,0.00958586]
[1768092371855,0.09392,90649.0,90638.0,0.011047]
[1768092372061,0.09392,90649.0,90635.0,0.011047]
[1768092373071,0.09392,90649.0,90634.0,0.00958586]
[1768092373262,0.09392,90649.0,90637.0,0.011047]
[1768092373458,0.09392,90649.0,90634.0,0.02063286]
[1768092374864,0.09392,90649.0,90635.0,0.00958586]
[1768092375270,0.09392,90649.0,90636.0,0.011047]
[1768092375470,0.09392,90649.0,90641.0,0.011046]
[1768092375673,0.09392,90649.0,90635.0,0.00958586]
[1768092377170,0.09392,90649.0,90638.0,0.011047]
[1768092377368,0.09392,90649.0,90635.0,0.02063286]
[1768092378674,0.09392,90649.0,90637.0,0.011047]
[1768092383473,5e-08,90645.0,90643.0,0.011046]
[1768092383675,0.01842,90651.0,90637.0,0.00958586]
[1768092383874,0.01842,90651.0,90644.0,0.011046]
[1768092384074,0.01842,90651.0,90641.0,0.02063186]
[1768092384378,0.01842,90651.0,90643.0,0.011046]
[1768092384577,0.01842,90651.0,90641.0,0.00958586]
[1768092384879,0.00965554,90650.0,90636.0,0.00958586]
[1768092386273,0.01842,90651.0,90636.0,0.00958586]
[1768092386479,0.01842,90651.0,90637.0,0.011047]
[1768092386681,0.01842,90651.0,90638.0,0.011047]
[1768092387282,0.01842,90651.0,90639.0,0.00958586]
[1768092387481,0.01842,90651.0,90643.0,0.011046]
[1768092391085,0.01842,90651.0,90641.0,0.011046]
[1768092392981,0.01842,90651.0,90639.0,0.00958586]
[1768092393186,0.01842,90651.0,90639.0,0.02063286]
[1768092393691,0.01842,90651.0,90639.0,0.00958586]
[1768092396291,0.01842,90651.0,90639.0,0.02063286]
[1768092398591,0.01842,90651.0,90639.0,0.00958586]
[1768092401491,0.02492942,90650.0,90639.0,0.00958586]
[1768092401687,0.01842,90651.0,90639.0,0.00958586]
[1768092401887,0.02492942,90650.0,90639.0,0.00958586]
[1768092402089,0.01842,90651.0,90639.0,0.00958586]
[1768092402289,0.02492942,90650.0,90639.0,0.00958586]
[1768092402492,0.01842,90651.0,90639.0,0.00958586]
[1768092402691,0.02493003,90650.0,90639.0,0.00958586]
[1768092402893,0.01842,90651.0,90639.0,0.00958586]
[1768092403093,0.02493003,90650.0,90639.0,0.00958586]
[1768092403292,0.01842,90651.0,90639.0,0.00958586]
[1768092403495,0.02493043,90650.0,90639.0,0.00958586]
[1768092403695,0.01842,90651.0,90639.0,0.00958586]
[1768092403895,0.02493043,90650.0,90639.0,0.00958586]
[1768092404097,0.01842,90651.0,90639.0,0.00958586]
[1768092404285,0.02493043,90650.0,90639.0,0.00958586]
[1768092404490,0.01842,90651.0,90639.0,0.00958586]
[1768092404690,0.02493091,90650.0,90639.0,0.00958586]
[1768092404891,0.01842,90651.0,90639.0,0.00958586]
[1768092405098,0.02493091,90650.0,90639.0,0.00958586]
[1768092405298,0.01842,90651.0,90639.0,0.00958586]
[1768092405500,0.02493148,90650.0,90639.0,0.00958586]
[1768092405700,0.01842,90651.0,90639.0,0.00958586]
[1768092405901,0.02493148,90650.0,90639.0,0.00958586]
[1768092406100,0.01842,90651.0,90639.0,0.00958586]
[1768092406301,0.02493148,90650.0,90639.0,0.00958586]
[1768092406498,0.01842,90651.0,90639.0,0.00958586]
[1768092406699,0.02493213,90650.0,90639.0,0.00958586]
[1768092406895,0.01842,90651.0,90639.0,0.00958586]
[1768092407095,0.02493213,90650.0,90639.0,0.00958586]
[1768092407393,0.01842,90651.0,90639.0,0.00958586]
[1768092407595,0.0249329,90650.0,90639.0,0.00958586]
[1768092407794,0.01842,90651.0,90639.0,0.00958586]
[1768092407995,0.0249329,90650.0,90639.0,0.00958586]
[1768092408295,0.01842,90651.0,90639.0,0.00958586]
[1768092408495,0.0249338,90650.0,90639.0,0.00958586]
[1768092408694,0.01842,90651.0,90639.0,0.00958586]
[1768092408896,0.0249338,90650.0,90639.0,0.00958586]
[1768092409100,0.01842,90651.0,90639.0,0.00958586]
[1768092409303,0.0249338,90650.0,90639.0,0.00958586]
[1768092409501,0.01842,90651.0,90639.0,0.00958586]
[1768092409701,0.02493487,90650.0,90639.0,0.00958586]
[1768092409903,0.01842,90651.0,90639.0,0.00958586]
[1768092410106,0.02493487,90650.0,90639.0,0.00958586]
[1768092410306,0.02493617,90649.0,90639.0,0.00958586]
[1768092410506,0.01842,90651.0,90639.0,0.00958586]
[1768092410702,0.02493633,90650.0,90639.0,0.00958586]
[1768092410906,0.02493633,90649.0,90639.0,0.00958586]
[1768092411207,0.01842,90651.0,90639.0,0.00958586]
[1768092414421,0.01842,90651.0,90639.0,0.02063286]
[1768092414907,0.01842,90651.0,90639.0,0.00958586]
[1768092417111,0.01842,90651.0,90644.0,0.011046]
[1768092417810,0.09392,90656.0,90644.0,0.011046]
[1768092418012,0.0249458,90655.0,90644.0,0.011046]
[1768092418212,0.09392,90656.0,90644.0,0.011046]
[1768092418412,0.02494477,90655.0,90644.0,0.011046]
[1768092418711,0.09392,90656.0,90644.0,0.011046]
[1768092418899,0.02494477,90655.0,90644.0,0.011046]
[1768092419103,0.10331492,90656.0,90644.0,0.011046]
[1768092419414,0.02494477,90655.0,90644.0,0.011046]
[1768092419616,0.10331492,90656.0,90644.0,0.011046]
[1768092419816,0.02494431,90655.0,90644.0,0.011046]
[1768092420012,0.10331492,90656.0,90644.0,0.011046]
[1768092420214,0.02494431,90655.0,90644.0,0.011046]
[1768092420409,0.10331492,90656.0,90645.0,0.011046]
[1768092420714,0.02494428,90655.0,90645.0,0.011046]
[1768092420910,0.10331492,90656.0,90645.0,0.011046]
[1768092421120,0.02494428,90655.0,90645.0,0.011046]
[1768092421314,0.10331492,90656.0,90645.0,0.011046]
[1768092421513,0.09392,90656.0,90649.0,0.011045]
[1768092422219,0.09392,90656.0,90647.0,0.00995376]
[1768092422514,0.09392,90656.0,90646.0,0.15217646]
[1768092422515,0.09392,90656.0,90653.0,0.011045]
[1768092422715,0.00939492,90666.0,90653.0,0.011045]
[1768092422716,0.09388,90664.0,90653.0,0.011045]
[1768092423211,0.10327492,90664.0,90649.0,0.011045]
[1768092423416,0.10327492,90664.0,90648.0,0.00995376]
[1768092423417,0.00939492,90663.0,90648.0,0.00995376]
[1768092424215,0.00939492,90663.0,90637.0,0.011047]
[1768092424216,0.01241915,90678.0,90662.0,0.00937555]
[1768092424713,0.01241915,90678.0,90666.0,0.011043]
[1768092426112,0.01241915,90678.0,90660.0,0.011044]
[1768092426322,0.00999297,90675.0,90660.0,0.011044]
[1768092426810,0.02103,90674.0,90657.0,0.011044]
[1768092427013,0.00999297,90673.0,90656.0,0.10325555]
[1768092427332,0.00999297,90673.0,90661.0,0.011044]
[1768092430915,0.00999297,90673.0,90656.0,0.10325555]
[1768092431215,0.00999297,90673.0,90658.0,0.011044]
[1768092431717,0.00999297,90673.0,90660.0,0.011044]
[1768092433020,0.00999297,90673.0,90657.0,0.011044]
[1768092433211,0.00999297,90673.0,90659.0,0.011044]
[1768092435419,0.00999297,90673.0,90656.0,0.10325555]
[1768092437520,0.00999297,90673.0,90661.0,0.011044]
[1768092440624,0.00999297,90673.0,90662.0,0.011044]
[1768092441026,0.02103,90674.0,90662.0,0.011044]
[1768092442324,0.02103,90674.0,90659.0,0.011044]
[1768092442628,0.02103,90674.0,90660.0,0.011044]
[1768092451533,0.00999297,90673.0,90657.0,0.00937555]
[1768092452133,0.00999297,90673.0,90659.0,0.011044]
[1768092456332,0.02476723,90672.0,90659.0,0.011044]
[1768092456533,0.00999297,90673.0,90659.0,0.011044]
[1768092456734,0.02476723,90672.0,90659.0,0.011044]
[1768092456932,0.00999297,90673.0,90659.0,0.011044]
[1768092457127,0.02476723,90672.0,90659.0,0.011044]
[1768092457328,0.00999297,90673.0,90659.0,0.011044]
[1768092457528,0.02476734,90672.0,90659.0,0.011044]
[1768092457728,0.00999297,90673.0,90659.0,0.011044]
[1768092457929,0.02476734,90672.0,90659.0,0.011044]
[1768092458227,0.00999297,90673.0,90659.0,0.011044]
[1768092458431,0.02476734,90672.0,90659.0,0.011044]
[1768092458629,0.00999297,90673.0,90659.0,0.011044]
[1768092458833,0.02476734,90672.0,90659.0,0.011044]
[1768092459135,0.00999297,90673.0,90659.0,0.011044]
[1768092459329,0.02476734,90672.0,90659.0,0.011044]
[1768092459530,0.00999297,90673.0,90657.0,0.02041955]
[1768092459830,0.02476734,90672.0,90657.0,0.02041955]
[1768092460030,0.00999297,90673.0,90657.0,0.02041955]
[1768092460230,0.02476734,90672.0,90657.0,0.02041955]
[1768092460434,0.00999297,90673.0,90657.0,0.02041955]
[1768092460735,0.02476734,90672.0,90657.0,0.02041955]
[1768092460934,0.00999297,90673.0,90657.0,0.02041955]
[1768092461234,0.02476734,90672.0,90657.0,0.02041955]
[1768092461427,0.00999297,90673.0,90657.0,0.02041955]
[1768092461827,0.00999297,90673.0,90657.0,0.00937555]
[1768092462233,0.00999297,90673.0,90660.0,0.011044]
[1768092462622,0.02103,90674.0,90660.0,0.011044]
[1768092464635,0.02103,90674.0,90661.0,0.011044]
[1768092464840,0.02103,90674.0,90669.0,0.00968106]
[1768092465140,0.09388,90676.0,90669.0,0.00968106]
[1768092469834,0.011042,90681.0,90669.0,0.00968106]
[1768092470140,0.030601,90683.0,90669.0,0.00968106]
[1768092470440,0.01956,90683.0,90669.0,0.00968106]
[1768092471132,0.011041,90682.0,90669.0,0.00968106]
[1768092477740,0.01956,90683.0,90669.0,0.00968106]
[1768092478348,0.01956,90683.0,90670.0,0.0098701]
[1768092479855,0.01956,90683.0,90672.0,0.0098701]
[1768092480254,0.01956,90683.0,90675.0,0.011042]
[1768092480752,0.011039,90701.0,90675.0,0.011042]
[1768092480753,0.01104,90694.0,90679.0,0.0098701]
[1768092480952,0.01104,90692.0,90679.0,0.0098701]
[1768092481253,0.02476149,90691.0,90679.0,0.0098701]
[1768092481552,0.01104,90692.0,90679.0,0.0098701]
[1768092481751,0.02474858,90691.0,90679.0,0.0098701]
[1768092481954,0.01104,90692.0,90679.0,0.0098701]
[1768092483646,0.011041,90690.0,90679.0,0.0098701]
[1768092483846,0.011041,90688.0,90672.0,0.00986015]
[1768092484046,0.011041,90688.0,90673.0,0.0090076]
[1768092485855,0.01104,90690.0,90673.0,0.0090076]
[1768092488255,0.01104,90690.0,90673.0,0.0200496]
[1768092492057,0.01104,90690.0,90674.0,0.0090076]
[1768092493759,0.02030339,90692.0,90675.0,0.011042]
[1768092493956,0.02030339,90692.0,90675.0,0.0200496]
[1768092496964,0.02030339,90692.0,90676.0,0.011042]
[1768092501661,0.02467928,90691.0,90676.0,0.011042]
[1768092501863,0.02467928,90690.0,90676.0,0.011042]
[1768092502171,0.02030339,90692.0,90676.0,0.011042]
[1768092502172,0.02467928,90689.0,90676.0,0.011042]
[1768092502377,0.02467928,90688.0,90676.0,0.011042]
[1768092502675,0.02467928,90687.0,90675.0,0.0090076]
[1768092502977,0.02467928,90686.0,90676.0,0.011042]
[1768092503163,0.02030339,90692.0,90676.0,0.011042]
[1768092503366,0.02468118,90691.0,90676.0,0.011042]
[1768092503567,0.02468118,90690.0,90676.0,0.011042]
[1768092503865,0.02468118,90689.0,90676.0,0.011042]
[1768092504066,0.02468118,90688.0,90676.0,0.011042]
[1768092504264,0.02468118,90687.0,90676.0,0.011042]
[1768092504476,0.02468118,90686.0,90676.0,0.011042]
[1768092504674,0.02030339,90692.0,90676.0,0.011042]
[1768092504863,0.02468475,90691.0,90676.0,0.011042]
[1768092505065,0.02468475,90690.0,90676.0,0.011042]
[1768092505267,0.02468475,90689.0,90676.0,0.011042]
[1768092505467,0.02030339,90692.0,90676.0,0.011042]
[1768092505468,0.02468475,90688.0,90676.0,0.011042]
[1768092505664,0.02468475,90687.0,90676.0,0.011042]
[1768092505880,0.02468475,90686.0,90676.0,0.011042]
[1768092506175,0.02468475,90685.0,90675.0,0.0090076]
[1768092506378,0.00926339,90692.0,90675.0,0.0090076]
[1768092506574,0.02469058,90691.0,90675.0,0.0090076]
[1768092506774,0.02469058,90690.0,90675.0,0.0090076]
[1768092507075,0.02469058,90689.0,90675.0,0.0090076]
[1768092507274,0.02469058,90688.0,90675.0,0.0090076]
[1768092507476,0.02469058,90687.0,90675.0,0.0090076]
[1768092507681,0.02469058,90686.0,90674.0,0.011042]
[1768092508574,0.02469058,90686.0,90675.0,0.011042]
[1768092510479,0.02469058,90686.0,90677.0,0.011042]
[1768092510678,0.02469058,90685.0,90677.0,0.011042]
[1768092510881,0.02469058,90684.0,90677.0,0.011042]
[1768092511181,0.02469058,90683.0,90677.0,0.011042]
[1768092511479,0.12200339,90693.0,90677.0,0.011042]
[1768092511681,0.02471339,90692.0,90677.0,0.011042]
[1768092511977,0.02471339,90691.0,90677.0,0.011042]
[1768092512184,0.02471339,90690.0,90678.0,0.011042]
[1768092512483,0.12200339,90693.0,90678.0,0.011042]
[1768092512677,0.02471338,90692.0,90678.0,0.011042]
[1768092512878,0.02471338,90691.0,90678.0,0.011042]
[1768092513178,0.02471338,90690.0,90678.0,0.011042]
[1768092513378,0.12200339,90693.0,90678.0,0.011042]
[1768092513578,0.02471336,90692.0,90678.0,0.011042]
[1768092513779,0.02471336,90691.0,90678.0,0.011042]
[1768092513978,0.02471336,90690.0,90678.0,0.011042]
[1768092514175,0.12200339,90693.0,90678.0,0.011042]
[1768092514379,0.02471335,90692.0,90678.0,0.011042]
[1768092514579,0.02471335,90691.0,90678.0,0.011042]
[1768092514780,0.02471335,90690.0,90678.0,0.011042]
[1768092514982,0.12200339,90693.0,90678.0,0.011042]
[1768092515284,0.02471335,90692.0,90678.0,0.011042]
[1768092515484,0.02471335,90691.0,90678.0,0.011042]
[1768092515682,0.02471335,90690.0,90678.0,0.011042]
[1768092515880,0.12200339,90693.0,90678.0,0.011042]
[1768092516180,0.02471296,90692.0,90678.0,0.011042]
[1768092516379,0.02471296,90691.0,90678.0,0.011042]
[1768092516580,0.02471296,90690.0,90678.0,0.011042]
[1768092516782,0.12200339,90693.0,90678.0,0.011042]
[1768092517086,0.03421986,90692.0,90678.0,0.011042]
[1768092517282,0.02477143,90691.0,90678.0,0.011042]
[1768092517482,0.02477143,90690.0,90678.0,0.011042]
[1768092517684,0.00944843,90692.0,90678.0,0.011042]
[1768092517879,0.02477143,90691.0,90678.0,0.011042]
[1768092518079,0.02477143,90690.0,90678.0,0.011042]
[1768092518377,0.00944843,90692.0,90678.0,0.011042]
[1768092518581,0.02477143,90691.0,90678.0,0.011042]
[1768092518782,0.02477143,90690.0,90678.0,0.011042]
[1768092518983,0.09384,90689.0,90678.0,0.011042]
[1768092521188,0.09384,90689.0,90676.0,0.02083096]
[1768092523891,0.09384,90689.0,90676.0,0.00978896]
[1768092524190,0.104881,90689.0,90676.0,0.00978896]
[1768092524391,0.104881,90689.0,90673.0,0.011042]
[1768092524790,0.011041,90687.0,90671.0,0.00978896]
[1768092525093,0.00944843,90686.0,90670.0,0.011043]
[1768092525284,0.00944843,90686.0,90670.0,0.16308701]
[1768092526303,0.00944843,90686.0,90672.0,0.011043]
[1768092530391,0.00944843,90686.0,90670.0,0.16183297]
[1768092530796,0.00944843,90686.0,90670.0,0.17287597]
[1768092532197,0.00944843,90686.0,90670.0,0.02083196]
[1768092535304,0.00944843,90686.0,90670.0,0.17287597]
[1768092536098,0.00944843,90686.0,90670.0,0.011043]
[1768092536403,0.00963104,90683.0,90668.0,0.011043]
[1768092539406,0.011041,90686.0,90669.0,0.00969069]
[1768092539706,0.02067204,90686.0,90669.0,0.00969069]
[1768092540106,0.02067204,90686.0,90669.0,0.02073369]
[1768092540307,0.02067204,90686.0,90670.0,0.011043]
[1768092540507,0.00963104,90685.0,90670.0,0.011043]
[1768092541107,0.00963104,90685.0,90673.0,0.011042]
[1768092541704,0.0248695,90684.0,90673.0,0.011042]
[1768092541900,0.0248695,90683.0,90673.0,0.011042]
[1768092542101,0.0248695,90682.0,90673.0,0.011042]
[1768092542303,0.00963104,90685.0,90673.0,0.011042]
[1768092542501,0.02486946,90684.0,90673.0,0.011042]
[1768092542802,0.02486946,90683.0,90673.0,0.011042]
[1768092543010,0.02486946,90682.0,90673.0,0.011042]
[1768092543208,0.00963104,90685.0,90673.0,0.011042]
[1768092543409,0.02486947,90684.0,90673.0,0.011042]
[1768092543615,0.02486947,90683.0,90673.0,0.011042]
[1768092543808,0.02486947,90682.0,90673.0,0.011042]
[1768092544011,0.00928012,90688.0,90673.0,0.011042]
[1768092544213,0.02486946,90687.0,90673.0,0.011042]
[1768092544409,0.02486946,90686.0,90673.0,0.011042]
[1768092544611,0.02486946,90685.0,90673.0,0.011042]
[1768092544812,0.02486946,90684.0,90673.0,0.011042]
[1768092545110,0.02486946,90683.0,90673.0,0.011042]
[1768092545412,0.02486946,90682.0,90673.0,0.011042]
[1768092545715,0.00928012,90688.0,90673.0,0.011042]
[1768092546011,0.00928012,90686.0,90671.0,0.011043]
[1768092546211,0.02486943,90685.0,90671.0,0.011043]
[1768092546708,0.03414955,90685.0,90671.0,0.011043]
[1768092546914,0.04662943,90684.0,90669.0,0.00969069]
[1768092547115,0.02486943,90683.0,90669.0,0.00969069]
[1768092548219,0.02486943,90683.0,90669.0,0.02073369]
[1768092550720,0.02486943,90683.0,90669.0,0.00969069]
[1768092551714,0.02176,90684.0,90669.0,0.00969069]
[1768092555523,0.03104012,90684.0,90669.0,0.00969069]
[1768092555722,0.00928012,90683.0,90669.0,0.00969069]
[1768092556825,0.011041,90682.0,90669.0,0.00969069]
[1768092558627,0.00928012,90683.0,90669.0,0.00969069]
[1768092562037,0.032801,90684.0,90669.0,0.00969069]
[1768092564941,0.011041,90684.0,90669.0,0.00969069]
[1768092568940,0.01636,90683.0,90669.0,0.00969069]
[1768092569745,0.01636,90683.0,90669.0,0.02073369]
[1768092572344,0.011041,90682.0,90669.0,0.00969069]
[1768092572637,0.01636,90683.0,90669.0,0.00969069]
[1768092575446,0.011042,90681.0,90669.0,0.00969069]
[1768092575634,0.011042,90681.0,90664.0,0.00953862]
[1768092575635,0.011042,90678.0,90664.0,0.00953862]
[1768092575942,0.011042,90680.0,90664.0,0.00953862]
[1768092579746,0.011042,90680.0,90664.0,0.02058262]
[1768092579947,0.011042,90680.0,90665.0,0.00953862]
[1768092580550,0.011041,90682.0,90666.0,0.00953862]
[1768092580748,0.011041,90682.0,90667.0,0.00953862]
[1768092584650,0.01963,90681.0,90667.0,0.00953862]
[1768092590344,0.011042,90680.0,90667.0,0.00953862]
[1768092595151,0.01963,90681.0,90668.0,0.00942039]
[1768092595353,0.01963,90681.0,90668.0,0.02046339]
[1768092595554,0.01963,90681.0,90669.0,0.00942039]
[1768092596155,0.01963,90681.0,90670.0,0.02046339]
[1768092598453,0.01963,90681.0,90668.0,0.0094584]
[1768092598454,0.01963,90681.0,90672.0,0.011043]
[1768092603356,0.0290103,90681.0,90662.0,0.00942039]
[1768092603562,0.0095745,90680.0,90662.0,0.00942039]
[1768092603963,0.0095745,90680.0,90662.0,0.01849681]
[1768092604161,0.0095745,90680.0,90663.0,0.00942171]
[1768092604361,0.0095745,90680.0,90667.0,0.011043]
[1768092604761,0.01963,90681.0,90667.0,0.011043]
[1768092606662,0.01963,90681.0,90668.0,0.011043]
[1768092608370,0.01963,90681.0,90669.0,0.011043]
[1768092611969,0.01963,90681.0,90665.0,0.00942171]
[1768092613175,0.01963,90681.0,90668.0,0.011043]
[1768092613472,0.01963,90681.0,90669.0,0.011043]
[1768092614770,0.0095745,90683.0,90669.0,0.011043]
[1768092618278,0.01572,90682.0,90669.0,0.011043]
[1768092619278,0.01572,90682.0,90665.0,0.00942171]
[1768092619279,0.01572,90682.0,90666.0,0.00942171]
[1768092619476,0.01572,90682.0,90668.0,0.011043]
[1768092622593,0.01572,90682.0,90666.0,0.02046471]
[1768092623686,0.01572,90682.0,90666.0,0.00942171]
[1768092623890,0.01572,90682.0,90667.0,0.011043]
[1768092624293,0.01572,90682.0,90668.0,0.011043]
[1768092630896,0.01572,90682.0,90666.0,0.02046471]
[1768092631196,0.026761,90682.0,90666.0,0.02046471]
[1768092631699,0.02507284,90681.0,90666.0,0.02046471]
[1768092631995,0.026761,90682.0,90666.0,0.02046471]
[1768092632186,0.02507284,90681.0,90666.0,0.02046471]
[1768092632382,0.026761,90682.0,90666.0,0.02046471]
[1768092632587,0.0250729,90681.0,90666.0,0.02046471]
[1768092632800,0.026761,90682.0,90666.0,0.02046471]
[1768092633000,0.02507291,90681.0,90666.0,0.02046471]
[1768092633204,0.026761,90682.0,90666.0,0.02046471]
[1768092633393,0.02507299,90681.0,90666.0,0.02046471]
[1768092633701,0.00944491,90681.0,90666.0,0.02046471]
[1768092639105,0.01572,90682.0,90666.0,0.02046471]
[1768092639306,0.0250091,90681.0,90666.0,0.02046471]
[1768092639506,0.01572,90682.0,90666.0,0.02046471]
[1768092639801,0.0250091,90681.0,90666.0,0.02046471]
[1768092640003,0.01572,90682.0,90666.0,0.02046471]
[1768092640204,0.0250091,90681.0,90666.0,0.02046471]
[1768092640399,0.01572,90682.0,90666.0,0.02046471]
[1768092640698,0.0250091,90681.0,90666.0,0.02046471]
[1768092640898,0.01572,90682.0,90666.0,0.02046471]
[1768092641197,0.0250091,90681.0,90666.0,0.02046471]
[1768092641398,0.01572,90682.0,90666.0,0.02046471]
[1768092643004,0.01572,90682.0,90667.0,0.00970599]
[1768092645608,0.01572,90682.0,90667.0,0.02074899]
[1768092649004,0.01572,90682.0,90670.0,0.15207542]
[1768092649913,0.01572,90682.0,90670.0,0.16178141]
[1768092650602,0.01572,90682.0,90671.0,0.011043]
[1768092650999,0.01572,90682.0,90672.0,0.00970599]
[1768092652309,0.09384,90685.0,90672.0,0.00970599]
[1768092655513,0.09384,90685.0,90675.0,0.011042]
[1768092661719,0.09384,90685.0,90676.0,0.011042]
[1768092663224,0.09384,90685.0,90677.0,0.011042]
[1768092669329,0.09384,90685.0,90675.0,0.011042]
[1768092670218,0.09384,90685.0,90672.0,0.00970599]
[1768092671020,0.09384,90685.0,90676.0,0.011042]
[1768092677326,0.09384,90685.0,90672.0,0.00970599]
[1768092677529,0.09384,90685.0,90675.0,0.011042]
[1768092678428,0.09384,90685.0,90676.0,0.011042]
[1768092678927,0.09384,90685.0,90677.0,0.011042]
[1768092681829,0.02497572,90684.0,90677.0,0.011042]
[1768092682025,0.09384,90685.0,90677.0,0.011042]
[1768092682224,0.02497572,90684.0,90677.0,0.011042]
[1768092682532,0.02497572,90683.0,90677.0,0.011042]
[1768092682733,0.09384,90685.0,90677.0,0.011042]
[1768092682936,0.02497632,90684.0,90677.0,0.011042]
[1768092683133,0.02497632,90683.0,90677.0,0.011042]
[1768092683329,0.10318318,90685.0,90677.0,0.011042]
[1768092683531,0.02497704,90684.0,90677.0,0.011042]
[1768092683730,0.02497704,90683.0,90677.0,0.011042]
[1768092683937,0.10318318,90685.0,90677.0,0.011042]
[1768092684128,0.02497704,90684.0,90677.0,0.011042]
[1768092684326,0.02497704,90683.0,90677.0,0.011042]
[1768092684529,0.10318318,90685.0,90677.0,0.011042]
[1768092684729,0.02497803,90684.0,90677.0,0.011042]
[1768092684933,0.02497803,90683.0,90677.0,0.011042]
[1768092685131,0.10318318,90685.0,90677.0,0.011042]
[1768092685332,0.02498015,90684.0,90677.0,0.011042]
[1768092685625,0.10318318,90685.0,90677.0,0.011042]
[1768092685626,0.02498015,90683.0,90677.0,0.011042]
[1768092685829,0.10318318,90685.0,90677.0,0.011042]
[1768092686037,0.02498014,90684.0,90677.0,0.011042]
[1768092686237,0.02498014,90683.0,90677.0,0.011042]
[1768092686439,0.10318318,90685.0,90677.0,0.011042]
[1768092686628,0.02498017,90684.0,90677.0,0.011042]
[1768092686928,0.02498017,90683.0,90677.0,0.011042]
[1768092687127,0.10318318,90685.0,90677.0,0.011042]
[1768092687421,0.02498017,90684.0,90677.0,0.011042]
[1768092687636,0.02498017,90683.0,90677.0,0.011042]
[1768092687835,0.10318318,90685.0,90677.0,0.011042]
[1768092688036,0.02497981,90684.0,90677.0,0.011042]
[1768092688236,0.02497981,90683.0,90677.0,0.011042]
[1768092688437,0.10318318,90685.0,90677.0,0.011042]
[1768092688639,0.02497982,90684.0,90677.0,0.011042]
[1768092688834,0.02497982,90683.0,90677.0,0.011042]
[1768092689036,0.10318318,90685.0,90677.0,0.011042]
[1768092689230,0.02497982,90684.0,90677.0,0.011042]
[1768092689430,0.02497982,90683.0,90677.0,0.011042]
[1768092689639,0.10318318,90685.0,90677.0,0.011042]
[1768092689840,0.02497981,90684.0,90677.0,0.011042]
[1768092690138,0.02497981,90683.0,90677.0,0.011042]
[1768092690340,0.10318318,90685.0,90677.0,0.011042]
[1768092690639,0.0249798,90684.0,90677.0,0.011042]
[1768092690828,0.0249798,90683.0,90677.0,0.011042]
[1768092691031,0.10318318,90685.0,90677.0,0.011042]
[1768092691231,0.0249798,90684.0,90677.0,0.011042]
[1768092691533,0.0249798,90683.0,90677.0,0.011042]
[1768092691841,0.10318318,90685.0,90677.0,0.011042]
[1768092702153,0.10318318,90685.0,90674.0,0.011042]
[1768092702853,0.10318318,90685.0,90669.0,0.00925427]
[1768092703151,0.10318318,90685.0,90676.0,0.011042]
[1768092703446,0.10318318,90685.0,90674.0,0.011042]
[1768092703651,0.00992882,90684.0,90674.0,0.011042]
[1768092713156,0.09384,90685.0,90674.0,0.011042]
[1768092713356,0.10293873,90685.0,90674.0,0.011042]
[1768092715857,0.02239,90684.0,90674.0,0.011042]
[1768092721262,0.02239,90684.0,90675.0,0.011042]
[1768092722061,0.02239,90684.0,90673.0,0.011042]
[1768092722360,0.011041,90683.0,90669.0,0.00925427]
[1768092722758,0.00909873,90676.0,90658.0,0.0090838]
[1768092723060,0.00909873,90674.0,90658.0,0.011044]
[1768092724057,0.00959912,90665.0,90646.0,0.00991827]
[1768092724253,0.00959912,90661.0,90646.0,0.00991827]
[1768092730365,0.00959912,90661.0,90647.0,0.011046]
[1768092731562,0.02064312,90661.0,90646.0,0.00991827]
[1768092733166,0.00959912,90661.0,90646.0,0.02096427]
[1768092735967,0.011044,90663.0,90646.0,0.02096427]
[1768092736160,0.011044,90662.0,90646.0,0.00991827]
[1768092737757,0.02064312,90662.0,90646.0,0.00991827]